Workbook

Sheet клиенты
A1: Название фирмы | B1: Код | C1: Контактная персона | D1: Индекс | E1: Город | F1: Улица | G1: Телефакс | H1: Телефон | I1: Скидка
A2: Азимут | B2: 1 | C2: Орлова Мария | D2: 690089 | E2: Владивосток | F2: Фирсова, 60 | G2: 2344542 | H2: 2344542 | I2: 0.022
A3: Мандарин | B3: 2 | C3: Игорь Юрьевич Петренко | D3: 690017 | E3: Владивосток | F3: Надибаидзе, 17А | G3: 2349887 | H3: 2349887 | I3: 0.103
A4: Матвеевская слобода | B4: 3 | C4: Матвеев Олег Степанович | D4: 620056 | E4: Уссурийск | F4: Петра Великого 10 | G4: 42345696 | H4: 42345696 | I4: 0.045
A5: Родные просторы | B5: 4 | C5: Елизавета Бондарева | D5: 690089 | E5: Владивосток | F5: Постышева 17 | G5: 2349730 | H5: 2349730 | I5: 0.061
A6: Шульц и Ко | B6: 5 | C6: Лев Уступин | D6: 6900812 | E6: Владивосток | F6: Фастовская 12 | G6: 2346556 | H6: 2346556 | I6: 0.12
A7: ЮКА | B7: 6 | C7: Алла Викторовна Рыль | D7: 690051 | E7: Владивосток | F7: Луговая 56 | G7: 2348523 | H7: 2348523 | I7: 0.15

Sheet товары
A1: Номер | B1: Наименование товара | C1: Цена
A2: 1 | B2: Яблоки "Антоновка" | C2: 78
A3: 2 | B3: Яблоки "Пинк леди" | C3: 102
A4: 3 | B4: Груши "Дюшес" | C4: 115
A5: 4 | B5: Дыня "Медовая" | C5: 134
A6: 5 | B6: Огурцы "Суражевские" | C6: 74
A7: 6 | B7: Огурцы "Белоречка" | C7: 80
A8: 7 | B8: Клубника садовая | C8: 230
A9: 8 | B9: Белые грибы | C9: 305
A10: 9 | B10: Бананы "Эквадор" | C10: 60
A11: 10 | B11: Лук шалот | C11: 123

Sheet заказы
A1: Месяц | B1: Дата | C1: Номер заказа | D1: Номер товара | E1: Наименование товара | F1: Количество | G1: Цена за ед. | H1: Код заказчика | I1: Название фирмы | J1: Сумма заказа | K1: Скидка | L1: Уплачено
A2: май | B2: 41034 | C2: 1 | D2: 6 | E2: =IF([Номер товара]="","",LOOKUP([Номер товара],Номер,Товар)) -> Огурцы "Белоречка" | F2: 2 | G2: =IF([Номер товара]="","",LOOKUP([Номер товара],Номер,Цена)) -> 80 | H2: 3 | I2: =IF([Код заказчика]="","",LOOKUP([Код заказчика],Код,Фирма)) -> Матвеевская слобода | J2: =IF([Количество]="","",[Количество]*[Цена за ед.]) -> 160 | K2: =IF([Код заказчика]="","",LOOKUP([Код заказчика],Код,Скидка)) -> 0.045 | L2: =IF([Сумма заказа]="","",[Сумма заказа]-[Сумма заказа]*[Скидка]) -> 152.8
A3: май | B3: 41035 | C3: 2 | D3: 10 | E3: =IF([Номер товара]="","",LOOKUP([Номер товара],Номер,Товар)) -> Лук шалот | F3: 7 | G3: =IF([Номер товара]="","",LOOKUP([Номер товара],Номер,Цена)) -> 123 | H3: 6 | I3: =IF([Код заказчика]="","",LOOKUP([Код заказчика],Код,Фирма)) -> ЮКА | J3: =IF([Количество]="","",[Количество]*[Цена за ед.]) -> 861 | K3: =IF([Код заказчика]="","",LOOKUP([Код заказчика],Код,Скидка)) -> 0.15 | L3: =IF([Сумма заказа]="","",[Сумма заказа]-[Сумма заказа]*[Скидка]) -> 731.85
A4: июнь | B4: 41072 | C4: 3 | D4: 2 | E4: =IF([Номер товара]="","",LOOKUP([Номер товара],Номер,Товар)) -> Яблоки "Пинк леди" | F4: 23 | G4: =IF([Номер товара]="","",LOOKUP([Номер товара],Номер,Цена)) -> 102 | H4: 4 | I4: =IF([Код заказчика]="","",LOOKUP([Код заказчика],Код,Фирма)) -> Родные просторы | J4: =IF([Количество]="","",[Количество]*[Цена за ед.]) -> 2346 | K4: =IF([Код заказчика]="","",LOOKUP([Код заказчика],Код,Скидка)) -> 0.061 | L4: =IF([Сумма заказа]="","",[Сумма заказа]-[Сумма заказа]*[Скидка]) -> 2202.894
A5: июль | B5: 41111 | C5: 4 | D5: 1 | E5: =IF([Номер товара]="","",LOOKUP([Номер товара],Номер,Товар)) -> Яблоки "Антоновка" | F5: 19 | G5: =IF([Номер товара]="","",LOOKUP([Номер товара],Номер,Цена)) -> 78 | H5: 6 | I5: =IF([Код заказчика]="","",LOOKUP([Код заказчика],Код,Фирма)) -> ЮКА | J5: =IF([Количество]="","",[Количество]*[Цена за ед.]) -> 1482 | K5: =IF([Код заказчика]="","",LOOKUP([Код заказчика],Код,Скидка)) -> 0.15 | L5: =IF([Сумма заказа]="","",[Сумма заказа]-[Сумма заказа]*[Скидка]) -> 1259.7
A6: август | B6: 41135 | C6: 5 | D6: 7 | E6: =IF([Номер товара]="","",LOOKUP([Номер товара],Номер,Товар)) -> Клубника садовая | F6: 56 | G6: =IF([Номер товара]="","",LOOKUP([Номер товара],Номер,Цена)) -> 230 | H6: 1 | I6: =IF([Код заказчика]="","",LOOKUP([Код заказчика],Код,Фирма)) -> Азимут | J6: =IF([Количество]="","",[Количество]*[Цена за ед.]) -> 12880 | K6: =IF([Код заказчика]="","",LOOKUP([Код заказчика],Код,Скидка)) -> 0.022 | L6: =IF([Сумма заказа]="","",[Сумма заказа]-[Сумма заказа]*[Скидка]) -> 12596.64
A7: август | B7: 41136 | C7: 6 | D7: 3 | E7: =IF([Номер товара]="","",LOOKUP([Номер товара],Номер,Товар)) -> Груши "Дюшес" | F7: 30 | G7: =IF([Номер товара]="","",LOOKUP([Номер товара],Номер,Цена)) -> 115 | H7: 2 | I7: =IF([Код заказчика]="","",LOOKUP([Код заказчика],Код,Фирма)) -> Мандарин | J7: =IF([Количество]="","",[Количество]*[Цена за ед.]) -> 3450 | K7: =IF([Код заказчика]="","",LOOKUP([Код заказчика],Код,Скидка)) -> 0.103 | L7: =IF([Сумма заказа]="","",[Сумма заказа]-[Сумма заказа]*[Скидка]) -> 3094.65
A8: август | B8: 41137 | C8: 7 | D8: 4 | E8: =IF([Номер товара]="","",LOOKUP([Номер товара],Номер,Товар)) -> Дыня "Медовая" | F8: 14 | G8: =IF([Номер товара]="","",LOOKUP([Номер товара],Номер,Цена)) -> 134 | H8: 3 | I8: =IF([Код заказчика]="","",LOOKUP([Код заказчика],Код,Фирма)) -> Матвеевская слобода | J8: =IF([Количество]="","",[Количество]*[Цена за ед.]) -> 1876 | K8: =IF([Код заказчика]="","",LOOKUP([Код заказчика],Код,Скидка)) -> 0.045 | L8: =IF([Сумма заказа]="","",[Сумма заказа]-[Сумма заказа]*[Скидка]) -> 1791.58
A9: сентябрь | B9: 41175 | C9: 8 | D9: 5 | E9: =IF([Номер товара]="","",LOOKUP([Номер товара],Номер,Товар)) -> Огурцы "Суражевские" | F9: 5 | G9: =IF([Номер товара]="","",LOOKUP([Номер товара],Номер,Цена)) -> 74 | H9: 5 | I9: =IF([Код заказчика]="","",LOOKUP([Код заказчика],Код,Фирма)) -> Шульц и Ко | J9: =IF([Количество]="","",[Количество]*[Цена за ед.]) -> 370 | K9: =IF([Код заказчика]="","",LOOKUP([Код заказчика],Код,Скидка)) -> 0.12 | L9: =IF([Сумма заказа]="","",[Сумма заказа]-[Сумма заказа]*[Скидка]) -> 325.6
A10: сентябрь | B10: 41176 | C10: 9 | D10: 8 | E10: =IF([Номер товара]="","",LOOKUP([Номер товара],Номер,Товар)) -> Белые грибы | F10: 11 | G10: =IF([Номер товара]="","",LOOKUP([Номер товара],Номер,Цена)) -> 305 | H10: 6 | I10: =IF([Код заказчика]="","",LOOKUP([Код заказчика],Код,Фирма)) -> ЮКА | J10: =IF([Количество]="","",[Количество]*[Цена за ед.]) -> 3355 | K10: =IF([Код заказчика]="","",LOOKUP([Код заказчика],Код,Скидка)) -> 0.15 | L10: =IF([Сумма заказа]="","",[Сумма заказа]-[Сумма заказа]*[Скидка]) -> 2851.75
A11: октябрь | B11: 41189 | C11: 10 | D11: 9 | E11: =IF([Номер товара]="","",LOOKUP([Номер товара],Номер,Товар)) -> Бананы "Эквадор" | F11: 21 | G11: =IF([Номер товара]="","",LOOKUP([Номер товара],Номер,Цена)) -> 60 | H11: 1 | I11: =IF([Код заказчика]="","",LOOKUP([Код заказчика],Код,Фирма)) -> Азимут | J11: =IF([Количество]="","",[Количество]*[Цена за ед.]) -> 1260 | K11: =IF([Код заказчика]="","",LOOKUP([Код заказчика],Код,Скидка)) -> 0.022 | L11: =IF([Сумма заказа]="","",[Сумма заказа]-[Сумма заказа]*[Скидка]) -> 1232.28
A12: октябрь | B12: 41190 | C12: 11 | D12: 7 | E12: =IF([Номер товара]="","",LOOKUP([Номер товара],Номер,Товар)) -> Клубника садовая | F12: 11 | G12: =IF([Номер товара]="","",LOOKUP([Номер товара],Номер,Цена)) -> 230 | H12: 6 | I12: =IF([Код заказчика]="","",LOOKUP([Код заказчика],Код,Фирма)) -> ЮКА | J12: =IF([Количество]="","",[Количество]*[Цена за ед.]) -> 2530 | K12: =IF([Код заказчика]="","",LOOKUP([Код заказчика],Код,Скидка)) -> 0.15 | L12: =IF([Сумма заказа]="","",[Сумма заказа]-[Сумма заказа]*[Скидка]) -> 2150.5
A13: ноябрь | B13: 41191 | C13: 11 | D13: 2 | E13: =IF([Номер товара]="","",LOOKUP([Номер товара],Номер,Товар)) -> Яблоки "Пинк леди" | F13: 20 | G13: =IF([Номер товара]="","",LOOKUP([Номер товара],Номер,Цена)) -> 102 | H13: 6 | I13: =IF([Код заказчика]="","",LOOKUP([Код заказчика],Код,Фирма)) -> ЮКА | J13: =IF([Количество]="","",[Количество]*[Цена за ед.]) -> 2040 | K13: =IF([Код заказчика]="","",LOOKUP([Код заказчика],Код,Скидка)) -> 0.15 | L13: =IF([Сумма заказа]="","",[Сумма заказа]-[Сумма заказа]*[Скидка]) -> 1734
C14: 11 | D14: 3 | E14: =IF([Номер товара]="","",LOOKUP([Номер товара],Номер,Товар)) -> Груши "Дюшес" | F14: 30 | G14: =IF([Номер товара]="","",LOOKUP([Номер товара],Номер,Цена)) -> 115 | H14: 7 | I14: =IF([Код заказчика]="","",LOOKUP([Код заказчика],Код,Фирма)) -> ЮКА | J14: =IF([Количество]="","",[Количество]*[Цена за ед.]) -> 3450 | K14: =IF([Код заказчика]="","",LOOKUP([Код заказчика],Код,Скидка)) -> 0.15 | L14: =IF([Сумма заказа]="","",[Сумма заказа]-[Сумма заказа]*[Скидка]) -> 2932.5

Sheet бланк
E1: Бланк заказа
D3: Заказ№ | E3: 11 | F3: от | G3: =IF($E$3="","",LOOKUP($E$3,Заказ,Дата)) -> 0 | J3: =(FLOOR(1+(ROW()-7)/4,1)>COUNTIF(Заказ,$E$3))*((ROW()+2)<MATCH("яяя",$B:$B)) -> 0
J4: =(FLOOR(1+(ROW()-7)/4,1)>COUNTIF(Заказ,$E$3))*((ROW()+2)<MATCH("яяя",$B:$B)) -> 0
B5: Название фирмы заказчика | E5: =IF($E$3="","",LOOKUP($E$3,Заказ,Фирма2)) -> ЮКА | H5: Код | I5: =IF($E$3="","",LOOKUP($E$3,Заказ,Код2)) -> 7 | J5: =(FLOOR(1+(ROW()-7)/4,1)>COUNTIF(Заказ,$E$3))*((ROW()+2)<MATCH("яяя",$B:$B)) -> 0
J6: =(FLOOR(1+(ROW()-7)/4,1)>COUNTIF(Заказ,$E$3))*((ROW()+2)<MATCH("яяя",$B:$B)) -> 0
B7: Наименование товара | E7: =IF(FLOOR(1+(ROW()-7)/4,1)>COUNTIF(Заказ,$E$3),"",INDEX(Товар2,SMALL(IF(Заказ=$E$3,ROW(заказы[]),""),FLOOR(1+(ROW()-7)/4,1))-ROW(заказы[#Headers]),)) -> Клубника садовая | H7: № | I7: =IF(FLOOR(1+(ROW()-7)/4,1)>COUNTIF(Заказ,$E$3),"",INDEX(Номер2,SMALL(IF(Заказ=$E$3,ROW(заказы[]),""),FLOOR(1+(ROW()-7)/4,1))-ROW(заказы[#Headers]),)) -> 7 | J7: =(FLOOR(1+(ROW()-7)/4,1)>COUNTIF(Заказ,$E$3))*((ROW()+2)<MATCH("яяя",$B:$B)) -> 0
J8: =(FLOOR(1+(ROW()-7)/4,1)>COUNTIF(Заказ,$E$3))*((ROW()+2)<MATCH("яяя",$B:$B)) -> 0
B9: Заказываемое количество | E9: =IF(FLOOR(1+(ROW()-7)/4,1)>COUNTIF(Заказ,$E$3),"",INDEX(Количество,SMALL(IF(Заказ=$E$3,ROW(заказы[]),""),FLOOR(1+(ROW()-7)/4,1))-ROW(заказы[#Headers]),)) -> 11 | F9: ед. по цене | I9: =IF(FLOOR(1+(ROW()-7)/4,1)>COUNTIF(Заказ,$E$3),"",INDEX(Цена2,SMALL(IF(Заказ=$E$3,ROW(заказы[]),""),FLOOR(1+(ROW()-7)/4,1))-ROW(заказы[#Headers]),)) -> 230 | J9: =(FLOOR(1+(ROW()-7)/4,1)>COUNTIF(Заказ,$E$3))*((ROW()+2)<MATCH("яяя",$B:$B)) -> 0
J10: =(FLOOR(1+(ROW()-7)/4,1)>COUNTIF(Заказ,$E$3))*((ROW()+2)<MATCH("яяя",$B:$B)) -> 0
B11: Наименование товара | E11: =IF(FLOOR(1+(ROW()-7)/4,1)>COUNTIF(Заказ,$E$3),"",INDEX(Товар2,SMALL(IF(Заказ=$E$3,ROW(заказы[]),""),FLOOR(1+(ROW()-7)/4,1))-ROW(заказы[#Headers]),)) -> Яблоки "Пинк леди" | H11: № | I11: =IF(FLOOR(1+(ROW()-7)/4,1)>COUNTIF(Заказ,$E$3),"",INDEX(Номер2,SMALL(IF(Заказ=$E$3,ROW(заказы[]),""),FLOOR(1+(ROW()-7)/4,1))-ROW(заказы[#Headers]),)) -> 2 | J11: =(FLOOR(1+(ROW()-7)/4,1)>COUNTIF(Заказ,$E$3))*((ROW()+2)<MATCH("яяя",$B:$B)) -> 0
J12: =(FLOOR(1+(ROW()-7)/4,1)>COUNTIF(Заказ,$E$3))*((ROW()+2)<MATCH("яяя",$B:$B)) -> 0
B13: Заказываемое количество | E13: =IF(FLOOR(1+(ROW()-7)/4,1)>COUNTIF(Заказ,$E$3),"",INDEX(Количество,SMALL(IF(Заказ=$E$3,ROW(заказы[]),""),FLOOR(1+(ROW()-7)/4,1))-ROW(заказы[#Headers]),)) -> 20 | F13: ед. по цене | I13: =IF(FLOOR(1+(ROW()-7)/4,1)>COUNTIF(Заказ,$E$3),"",INDEX(Цена2,SMALL(IF(Заказ=$E$3,ROW(заказы[]),""),FLOOR(1+(ROW()-7)/4,1))-ROW(заказы[#Headers]),)) -> 102 | J13: =(FLOOR(1+(ROW()-7)/4,1)>COUNTIF(Заказ,$E$3))*((ROW()+2)<MATCH("яяя",$B:$B)) -> 0
J14: =(FLOOR(1+(ROW()-7)/4,1)>COUNTIF(Заказ,$E$3))*((ROW()+2)<MATCH("яяя",$B:$B)) -> 0
B15: Наименование товара | E15: =IF(FLOOR(1+(ROW()-7)/4,1)>COUNTIF(Заказ,$E$3),"",INDEX(Товар2,SMALL(IF(Заказ=$E$3,ROW(заказы[]),""),FLOOR(1+(ROW()-7)/4,1))-ROW(заказы[#Headers]),)) -> Груши "Дюшес" | H15: № | I15: =IF(FLOOR(1+(ROW()-7)/4,1)>COUNTIF(Заказ,$E$3),"",INDEX(Номер2,SMALL(IF(Заказ=$E$3,ROW(заказы[]),""),FLOOR(1+(ROW()-7)/4,1))-ROW(заказы[#Headers]),)) -> 3 | J15: =(FLOOR(1+(ROW()-7)/4,1)>COUNTIF(Заказ,$E$3))*((ROW()+2)<MATCH("яяя",$B:$B)) -> 0
J16: =(FLOOR(1+(ROW()-7)/4,1)>COUNTIF(Заказ,$E$3))*((ROW()+2)<MATCH("яяя",$B:$B)) -> 0
B17: Заказываемое количество | E17: =IF(FLOOR(1+(ROW()-7)/4,1)>COUNTIF(Заказ,$E$3),"",INDEX(Количество,SMALL(IF(Заказ=$E$3,ROW(заказы[]),""),FLOOR(1+(ROW()-7)/4,1))-ROW(заказы[#Headers]),)) -> 30 | F17: ед. по цене | I17: =IF(FLOOR(1+(ROW()-7)/4,1)>COUNTIF(Заказ,$E$3),"",INDEX(Цена2,SMALL(IF(Заказ=$E$3,ROW(заказы[]),""),FLOOR(1+(ROW()-7)/4,1))-ROW(заказы[#Headers]),)) -> 115 | J17: =(FLOOR(1+(ROW()-7)/4,1)>COUNTIF(Заказ,$E$3))*((ROW()+2)<MATCH("яяя",$B:$B)) -> 0
J18: =(FLOOR(1+(ROW()-7)/4,1)>COUNTIF(Заказ,$E$3))*((ROW()+2)<MATCH("яяя",$B:$B)) -> 0
B19: Наименование товара | E19: =IF(FLOOR(1+(ROW()-7)/4,1)>COUNTIF(Заказ,$E$3),"",INDEX(Товар2,SMALL(IF(Заказ=$E$3,ROW(заказы[]),""),FLOOR(1+(ROW()-7)/4,1))-ROW(заказы[#Headers]),)) ->  | H19: № | I19: =IF(FLOOR(1+(ROW()-7)/4,1)>COUNTIF(Заказ,$E$3),"",INDEX(Номер2,SMALL(IF(Заказ=$E$3,ROW(заказы[]),""),FLOOR(1+(ROW()-7)/4,1))-ROW(заказы[#Headers]),)) ->  | J19: =(FLOOR(1+(ROW()-7)/4,1)>COUNTIF(Заказ,$E$3))*((ROW()+2)<MATCH("яяя",$B:$B)) -> 1
J20: =(FLOOR(1+(ROW()-7)/4,1)>COUNTIF(Заказ,$E$3))*((ROW()+2)<MATCH("яяя",$B:$B)) -> 1
B21: Заказываемое количество | E21: =IF(FLOOR(1+(ROW()-7)/4,1)>COUNTIF(Заказ,$E$3),"",INDEX(Количество,SMALL(IF(Заказ=$E$3,ROW(заказы[]),""),FLOOR(1+(ROW()-7)/4,1))-ROW(заказы[#Headers]),)) ->  | F21: ед. по цене | I21: =IF(FLOOR(1+(ROW()-7)/4,1)>COUNTIF(Заказ,$E$3),"",INDEX(Цена2,SMALL(IF(Заказ=$E$3,ROW(заказы[]),""),FLOOR(1+(ROW()-7)/4,1))-ROW(заказы[#Headers]),)) ->  | J21: =(FLOOR(1+(ROW()-7)/4,1)>COUNTIF(Заказ,$E$3))*((ROW()+2)<MATCH("яяя",$B:$B)) -> 1
J22: =(FLOOR(1+(ROW()-7)/4,1)>COUNTIF(Заказ,$E$3))*((ROW()+2)<MATCH("яяя",$B:$B)) -> 1
B23: Наименование товара | E23: =IF(FLOOR(1+(ROW()-7)/4,1)>COUNTIF(Заказ,$E$3),"",INDEX(Товар2,SMALL(IF(Заказ=$E$3,ROW(заказы[]),""),FLOOR(1+(ROW()-7)/4,1))-ROW(заказы[#Headers]),)) ->  | H23: № | I23: =IF(FLOOR(1+(ROW()-7)/4,1)>COUNTIF(Заказ,$E$3),"",INDEX(Номер2,SMALL(IF(Заказ=$E$3,ROW(заказы[]),""),FLOOR(1+(ROW()-7)/4,1))-ROW(заказы[#Headers]),)) ->  | J23: =(FLOOR(1+(ROW()-7)/4,1)>COUNTIF(Заказ,$E$3))*((ROW()+2)<MATCH("яяя",$B:$B)) -> 1
J24: =(FLOOR(1+(ROW()-7)/4,1)>COUNTIF(Заказ,$E$3))*((ROW()+2)<MATCH("яяя",$B:$B)) -> 1
B25: Заказываемое количество | E25: =IF(FLOOR(1+(ROW()-7)/4,1)>COUNTIF(Заказ,$E$3),"",INDEX(Количество,SMALL(IF(Заказ=$E$3,ROW(заказы[]),""),FLOOR(1+(ROW()-7)/4,1))-ROW(заказы[#Headers]),)) ->  | F25: ед. по цене | I25: =IF(FLOOR(1+(ROW()-7)/4,1)>COUNTIF(Заказ,$E$3),"",INDEX(Цена2,SMALL(IF(Заказ=$E$3,ROW(заказы[]),""),FLOOR(1+(ROW()-7)/4,1))-ROW(заказы[#Headers]),)) ->  | J25: =(FLOOR(1+(ROW()-7)/4,1)>COUNTIF(Заказ,$E$3))*((ROW()+2)<MATCH("яяя",$B:$B)) -> 1
J26: =(FLOOR(1+(ROW()-7)/4,1)>COUNTIF(Заказ,$E$3))*((ROW()+2)<MATCH("яяя",$B:$B)) -> 1
B27: Наименование товара | E27: =IF(FLOOR(1+(ROW()-7)/4,1)>COUNTIF(Заказ,$E$3),"",INDEX(Товар2,SMALL(IF(Заказ=$E$3,ROW(заказы[]),""),FLOOR(1+(ROW()-7)/4,1))-ROW(заказы[#Headers]),)) ->  | H27: № | I27: =IF(FLOOR(1+(ROW()-7)/4,1)>COUNTIF(Заказ,$E$3),"",INDEX(Номер2,SMALL(IF(Заказ=$E$3,ROW(заказы[]),""),FLOOR(1+(ROW()-7)/4,1))-ROW(заказы[#Headers]),)) ->  | J27: =(FLOOR(1+(ROW()-7)/4,1)>COUNTIF(Заказ,$E$3))*((ROW()+2)<MATCH("яяя",$B:$B)) -> 1
J28: =(FLOOR(1+(ROW()-7)/4,1)>COUNTIF(Заказ,$E$3))*((ROW()+2)<MATCH("яяя",$B:$B)) -> 1
B29: Заказываемое количество | E29: =IF(FLOOR(1+(ROW()-7)/4,1)>COUNTIF(Заказ,$E$3),"",INDEX(Количество,SMALL(IF(Заказ=$E$3,ROW(заказы[]),""),FLOOR(1+(ROW()-7)/4,1))-ROW(заказы[#Headers]),)) ->  | F29: ед. по цене | I29: =IF(FLOOR(1+(ROW()-7)/4,1)>COUNTIF(Заказ,$E$3),"",INDEX(Цена2,SMALL(IF(Заказ=$E$3,ROW(заказы[]),""),FLOOR(1+(ROW()-7)/4,1))-ROW(заказы[#Headers]),)) ->  | J29: =(FLOOR(1+(ROW()-7)/4,1)>COUNTIF(Заказ,$E$3))*((ROW()+2)<MATCH("яяя",$B:$B)) -> 1
J30: =(FLOOR(1+(ROW()-7)/4,1)>COUNTIF(Заказ,$E$3))*((ROW()+2)<MATCH("яяя",$B:$B)) -> 1
B31: Наименование товара | E31: =IF(FLOOR(1+(ROW()-7)/4,1)>COUNTIF(Заказ,$E$3),"",INDEX(Товар2,SMALL(IF(Заказ=$E$3,ROW(заказы[]),""),FLOOR(1+(ROW()-7)/4,1))-ROW(заказы[#Headers]),)) ->  | H31: № | I31: =IF(FLOOR(1+(ROW()-7)/4,1)>COUNTIF(Заказ,$E$3),"",INDEX(Номер2,SMALL(IF(Заказ=$E$3,ROW(заказы[]),""),FLOOR(1+(ROW()-7)/4,1))-ROW(заказы[#Headers]),)) ->  | J31: =(FLOOR(1+(ROW()-7)/4,1)>COUNTIF(Заказ,$E$3))*((ROW()+2)<MATCH("яяя",$B:$B)) -> 1
J32: =(FLOOR(1+(ROW()-7)/4,1)>COUNTIF(Заказ,$E$3))*((ROW()+2)<MATCH("яяя",$B:$B)) -> 1
B33: Заказываемое количество | E33: =IF(FLOOR(1+(ROW()-7)/4,1)>COUNTIF(Заказ,$E$3),"",INDEX(Количество,SMALL(IF(Заказ=$E$3,ROW(заказы[]),""),FLOOR(1+(ROW()-7)/4,1))-ROW(заказы[#Headers]),)) ->  | F33: ед. по цене | I33: =IF(FLOOR(1+(ROW()-7)/4,1)>COUNTIF(Заказ,$E$3),"",INDEX(Цена2,SMALL(IF(Заказ=$E$3,ROW(заказы[]),""),FLOOR(1+(ROW()-7)/4,1))-ROW(заказы[#Headers]),)) ->  | J33: =(FLOOR(1+(ROW()-7)/4,1)>COUNTIF(Заказ,$E$3))*((ROW()+2)<MATCH("яяя",$B:$B)) -> 1
J34: =(FLOOR(1+(ROW()-7)/4,1)>COUNTIF(Заказ,$E$3))*((ROW()+2)<MATCH("яяя",$B:$B)) -> 1
B35: Наименование товара | E35: =IF(FLOOR(1+(ROW()-7)/4,1)>COUNTIF(Заказ,$E$3),"",INDEX(Товар2,SMALL(IF(Заказ=$E$3,ROW(заказы[]),""),FLOOR(1+(ROW()-7)/4,1))-ROW(заказы[#Headers]),)) ->  | H35: № | I35: =IF(FLOOR(1+(ROW()-7)/4,1)>COUNTIF(Заказ,$E$3),"",INDEX(Номер2,SMALL(IF(Заказ=$E$3,ROW(заказы[]),""),FLOOR(1+(ROW()-7)/4,1))-ROW(заказы[#Headers]),)) ->  | J35: =(FLOOR(1+(ROW()-7)/4,1)>COUNTIF(Заказ,$E$3))*((ROW()+2)<MATCH("яяя",$B:$B)) -> 1
J36: =(FLOOR(1+(ROW()-7)/4,1)>COUNTIF(Заказ,$E$3))*((ROW()+2)<MATCH("яяя",$B:$B)) -> 1
B37: Заказываемое количество | E37: =IF(FLOOR(1+(ROW()-7)/4,1)>COUNTIF(Заказ,$E$3),"",INDEX(Количество,SMALL(IF(Заказ=$E$3,ROW(заказы[]),""),FLOOR(1+(ROW()-7)/4,1))-ROW(заказы[#Headers]),)) ->  | F37: ед. по цене | I37: =IF(FLOOR(1+(ROW()-7)/4,1)>COUNTIF(Заказ,$E$3),"",INDEX(Цена2,SMALL(IF(Заказ=$E$3,ROW(заказы[]),""),FLOOR(1+(ROW()-7)/4,1))-ROW(заказы[#Headers]),)) ->  | J37: =(FLOOR(1+(ROW()-7)/4,1)>COUNTIF(Заказ,$E$3))*((ROW()+2)<MATCH("яяя",$B:$B)) -> 1
J38: =(FLOOR(1+(ROW()-7)/4,1)>COUNTIF(Заказ,$E$3))*((ROW()+2)<MATCH("яяя",$B:$B)) -> 1
B39: Наименование товара | E39: =IF(FLOOR(1+(ROW()-7)/4,1)>COUNTIF(Заказ,$E$3),"",INDEX(Товар2,SMALL(IF(Заказ=$E$3,ROW(заказы[]),""),FLOOR(1+(ROW()-7)/4,1))-ROW(заказы[#Headers]),)) ->  | H39: № | I39: =IF(FLOOR(1+(ROW()-7)/4,1)>COUNTIF(Заказ,$E$3),"",INDEX(Номер2,SMALL(IF(Заказ=$E$3,ROW(заказы[]),""),FLOOR(1+(ROW()-7)/4,1))-ROW(заказы[#Headers]),)) ->  | J39: =(FLOOR(1+(ROW()-7)/4,1)>COUNTIF(Заказ,$E$3))*((ROW()+2)<MATCH("яяя",$B:$B)) -> 1
J40: =(FLOOR(1+(ROW()-7)/4,1)>COUNTIF(Заказ,$E$3))*((ROW()+2)<MATCH("яяя",$B:$B)) -> 1
B41: Заказываемое количество | E41: =IF(FLOOR(1+(ROW()-7)/4,1)>COUNTIF(Заказ,$E$3),"",INDEX(Количество,SMALL(IF(Заказ=$E$3,ROW(заказы[]),""),FLOOR(1+(ROW()-7)/4,1))-ROW(заказы[#Headers]),)) ->  | F41: ед. по цене | I41: =IF(FLOOR(1+(ROW()-7)/4,1)>COUNTIF(Заказ,$E$3),"",INDEX(Цена2,SMALL(IF(Заказ=$E$3,ROW(заказы[]),""),FLOOR(1+(ROW()-7)/4,1))-ROW(заказы[#Headers]),)) ->  | J41: =(FLOOR(1+(ROW()-7)/4,1)>COUNTIF(Заказ,$E$3))*((ROW()+2)<MATCH("яяя",$B:$B)) -> 1
J42: =(FLOOR(1+(ROW()-7)/4,1)>COUNTIF(Заказ,$E$3))*((ROW()+2)<MATCH("яяя",$B:$B)) -> 1
B43: Наименование товара | E43: =IF(FLOOR(1+(ROW()-7)/4,1)>COUNTIF(Заказ,$E$3),"",INDEX(Товар2,SMALL(IF(Заказ=$E$3,ROW(заказы[]),""),FLOOR(1+(ROW()-7)/4,1))-ROW(заказы[#Headers]),)) ->  | H43: № | I43: =IF(FLOOR(1+(ROW()-7)/4,1)>COUNTIF(Заказ,$E$3),"",INDEX(Номер2,SMALL(IF(Заказ=$E$3,ROW(заказы[]),""),FLOOR(1+(ROW()-7)/4,1))-ROW(заказы[#Headers]),)) ->  | J43: =(FLOOR(1+(ROW()-7)/4,1)>COUNTIF(Заказ,$E$3))*((ROW()+2)<MATCH("яяя",$B:$B)) -> 1
J44: =(FLOOR(1+(ROW()-7)/4,1)>COUNTIF(Заказ,$E$3))*((ROW()+2)<MATCH("яяя",$B:$B)) -> 1
B45: Заказываемое количество | E45: =IF(FLOOR(1+(ROW()-7)/4,1)>COUNTIF(Заказ,$E$3),"",INDEX(Количество,SMALL(IF(Заказ=$E$3,ROW(заказы[]),""),FLOOR(1+(ROW()-7)/4,1))-ROW(заказы[#Headers]),)) ->  | F45: ед. по цене | I45: =IF(FLOOR(1+(ROW()-7)/4,1)>COUNTIF(Заказ,$E$3),"",INDEX(Цена2,SMALL(IF(Заказ=$E$3,ROW(заказы[]),""),FLOOR(1+(ROW()-7)/4,1))-ROW(заказы[#Headers]),)) ->  | J45: =(FLOOR(1+(ROW()-7)/4,1)>COUNTIF(Заказ,$E$3))*((ROW()+2)<MATCH("яяя",$B:$B)) -> 1
J46: =(FLOOR(1+(ROW()-7)/4,1)>COUNTIF(Заказ,$E$3))*((ROW()+2)<MATCH("яяя",$B:$B)) -> 1
B47: Наименование товара | E47: =IF(FLOOR(1+(ROW()-7)/4,1)>COUNTIF(Заказ,$E$3),"",INDEX(Товар2,SMALL(IF(Заказ=$E$3,ROW(заказы[]),""),FLOOR(1+(ROW()-7)/4,1))-ROW(заказы[#Headers]),)) ->  | H47: № | I47: =IF(FLOOR(1+(ROW()-7)/4,1)>COUNTIF(Заказ,$E$3),"",INDEX(Номер2,SMALL(IF(Заказ=$E$3,ROW(заказы[]),""),FLOOR(1+(ROW()-7)/4,1))-ROW(заказы[#Headers]),)) ->  | J47: =(FLOOR(1+(ROW()-7)/4,1)>COUNTIF(Заказ,$E$3))*((ROW()+2)<MATCH("яяя",$B:$B)) -> 1
J48: =(FLOOR(1+(ROW()-7)/4,1)>COUNTIF(Заказ,$E$3))*((ROW()+2)<MATCH("яяя",$B:$B)) -> 1
B49: Заказываемое количество | E49: =IF(FLOOR(1+(ROW()-7)/4,1)>COUNTIF(Заказ,$E$3),"",INDEX(Количество,SMALL(IF(Заказ=$E$3,ROW(заказы[]),""),FLOOR(1+(ROW()-7)/4,1))-ROW(заказы[#Headers]),)) ->  | F49: ед. по цене | I49: =IF(FLOOR(1+(ROW()-7)/4,1)>COUNTIF(Заказ,$E$3),"",INDEX(Цена2,SMALL(IF(Заказ=$E$3,ROW(заказы[]),""),FLOOR(1+(ROW()-7)/4,1))-ROW(заказы[#Headers]),)) ->  | J49: =(FLOOR(1+(ROW()-7)/4,1)>COUNTIF(Заказ,$E$3))*((ROW()+2)<MATCH("яяя",$B:$B)) -> 1
J50: =(FLOOR(1+(ROW()-7)/4,1)>COUNTIF(Заказ,$E$3))*((ROW()+2)<MATCH("яяя",$B:$B)) -> 1
B51: Наименование товара | E51: =IF(FLOOR(1+(ROW()-7)/4,1)>COUNTIF(Заказ,$E$3),"",INDEX(Товар2,SMALL(IF(Заказ=$E$3,ROW(заказы[]),""),FLOOR(1+(ROW()-7)/4,1))-ROW(заказы[#Headers]),)) ->  | H51: № | I51: =IF(FLOOR(1+(ROW()-7)/4,1)>COUNTIF(Заказ,$E$3),"",INDEX(Номер2,SMALL(IF(Заказ=$E$3,ROW(заказы[]),""),FLOOR(1+(ROW()-7)/4,1))-ROW(заказы[#Headers]),)) ->  | J51: =(FLOOR(1+(ROW()-7)/4,1)>COUNTIF(Заказ,$E$3))*((ROW()+2)<MATCH("яяя",$B:$B)) -> 1
J52: =(FLOOR(1+(ROW()-7)/4,1)>COUNTIF(Заказ,$E$3))*((ROW()+2)<MATCH("яяя",$B:$B)) -> 1
B53: Заказываемое количество | E53: =IF(FLOOR(1+(ROW()-7)/4,1)>COUNTIF(Заказ,$E$3),"",INDEX(Количество,SMALL(IF(Заказ=$E$3,ROW(заказы[]),""),FLOOR(1+(ROW()-7)/4,1))-ROW(заказы[#Headers]),)) ->  | F53: ед. по цене | I53: =IF(FLOOR(1+(ROW()-7)/4,1)>COUNTIF(Заказ,$E$3),"",INDEX(Цена2,SMALL(IF(Заказ=$E$3,ROW(заказы[]),""),FLOOR(1+(ROW()-7)/4,1))-ROW(заказы[#Headers]),)) ->  | J53: =(FLOOR(1+(ROW()-7)/4,1)>COUNTIF(Заказ,$E$3))*((ROW()+2)<MATCH("яяя",$B:$B)) -> 1
J54: =(FLOOR(1+(ROW()-7)/4,1)>COUNTIF(Заказ,$E$3))*((ROW()+2)<MATCH("яяя",$B:$B)) -> 1
B55: Наименование товара | E55: =IF(FLOOR(1+(ROW()-7)/4,1)>COUNTIF(Заказ,$E$3),"",INDEX(Товар2,SMALL(IF(Заказ=$E$3,ROW(заказы[]),""),FLOOR(1+(ROW()-7)/4,1))-ROW(заказы[#Headers]),)) ->  | H55: № | I55: =IF(FLOOR(1+(ROW()-7)/4,1)>COUNTIF(Заказ,$E$3),"",INDEX(Номер2,SMALL(IF(Заказ=$E$3,ROW(заказы[]),""),FLOOR(1+(ROW()-7)/4,1))-ROW(заказы[#Headers]),)) ->  | J55: =(FLOOR(1+(ROW()-7)/4,1)>COUNTIF(Заказ,$E$3))*((ROW()+2)<MATCH("яяя",$B:$B)) -> 1
J56: =(FLOOR(1+(ROW()-7)/4,1)>COUNTIF(Заказ,$E$3))*((ROW()+2)<MATCH("яяя",$B:$B)) -> 1
B57: Заказываемое количество | E57: =IF(FLOOR(1+(ROW()-7)/4,1)>COUNTIF(Заказ,$E$3),"",INDEX(Количество,SMALL(IF(Заказ=$E$3,ROW(заказы[]),""),FLOOR(1+(ROW()-7)/4,1))-ROW(заказы[#Headers]),)) ->  | F57: ед. по цене | I57: =IF(FLOOR(1+(ROW()-7)/4,1)>COUNTIF(Заказ,$E$3),"",INDEX(Цена2,SMALL(IF(Заказ=$E$3,ROW(заказы[]),""),FLOOR(1+(ROW()-7)/4,1))-ROW(заказы[#Headers]),)) ->  | J57: =(FLOOR(1+(ROW()-7)/4,1)>COUNTIF(Заказ,$E$3))*((ROW()+2)<MATCH("яяя",$B:$B)) -> 1
J58: =(FLOOR(1+(ROW()-7)/4,1)>COUNTIF(Заказ,$E$3))*((ROW()+2)<MATCH("яяя",$B:$B)) -> 1
B59: Наименование товара | E59: =IF(FLOOR(1+(ROW()-7)/4,1)>COUNTIF(Заказ,$E$3),"",INDEX(Товар2,SMALL(IF(Заказ=$E$3,ROW(заказы[]),""),FLOOR(1+(ROW()-7)/4,1))-ROW(заказы[#Headers]),)) ->  | H59: № | I59: =IF(FLOOR(1+(ROW()-7)/4,1)>COUNTIF(Заказ,$E$3),"",INDEX(Номер2,SMALL(IF(Заказ=$E$3,ROW(заказы[]),""),FLOOR(1+(ROW()-7)/4,1))-ROW(заказы[#Headers]),)) ->  | J59: =(FLOOR(1+(ROW()-7)/4,1)>COUNTIF(Заказ,$E$3))*((ROW()+2)<MATCH("яяя",$B:$B)) -> 1
J60: =(FLOOR(1+(ROW()-7)/4,1)>COUNTIF(Заказ,$E$3))*((ROW()+2)<MATCH("яяя",$B:$B)) -> 1
B61: Заказываемое количество | E61: =IF(FLOOR(1+(ROW()-7)/4,1)>COUNTIF(Заказ,$E$3),"",INDEX(Количество,SMALL(IF(Заказ=$E$3,ROW(заказы[]),""),FLOOR(1+(ROW()-7)/4,1))-ROW(заказы[#Headers]),)) ->  | F61: ед. по цене | I61: =IF(FLOOR(1+(ROW()-7)/4,1)>COUNTIF(Заказ,$E$3),"",INDEX(Цена2,SMALL(IF(Заказ=$E$3,ROW(заказы[]),""),FLOOR(1+(ROW()-7)/4,1))-ROW(заказы[#Headers]),)) ->  | J61: =(FLOOR(1+(ROW()-7)/4,1)>COUNTIF(Заказ,$E$3))*((ROW()+2)<MATCH("яяя",$B:$B)) -> 1
J62: =(FLOOR(1+(ROW()-7)/4,1)>COUNTIF(Заказ,$E$3))*((ROW()+2)<MATCH("яяя",$B:$B)) -> 1
B63: Наименование товара | E63: =IF(FLOOR(1+(ROW()-7)/4,1)>COUNTIF(Заказ,$E$3),"",INDEX(Товар2,SMALL(IF(Заказ=$E$3,ROW(заказы[]),""),FLOOR(1+(ROW()-7)/4,1))-ROW(заказы[#Headers]),)) ->  | H63: № | I63: =IF(FLOOR(1+(ROW()-7)/4,1)>COUNTIF(Заказ,$E$3),"",INDEX(Номер2,SMALL(IF(Заказ=$E$3,ROW(заказы[]),""),FLOOR(1+(ROW()-7)/4,1))-ROW(заказы[#Headers]),)) ->  | J63: =(FLOOR(1+(ROW()-7)/4,1)>COUNTIF(Заказ,$E$3))*((ROW()+2)<MATCH("яяя",$B:$B)) -> 1
J64: =(FLOOR(1+(ROW()-7)/4,1)>COUNTIF(Заказ,$E$3))*((ROW()+2)<MATCH("яяя",$B:$B)) -> 1
B65: Заказываемое количество | E65: =IF(FLOOR(1+(ROW()-7)/4,1)>COUNTIF(Заказ,$E$3),"",INDEX(Количество,SMALL(IF(Заказ=$E$3,ROW(заказы[]),""),FLOOR(1+(ROW()-7)/4,1))-ROW(заказы[#Headers]),)) ->  | F65: ед. по цене | I65: =IF(FLOOR(1+(ROW()-7)/4,1)>COUNTIF(Заказ,$E$3),"",INDEX(Цена2,SMALL(IF(Заказ=$E$3,ROW(заказы[]),""),FLOOR(1+(ROW()-7)/4,1))-ROW(заказы[#Headers]),)) ->  | J65: =(FLOOR(1+(ROW()-7)/4,1)>COUNTIF(Заказ,$E$3))*((ROW()+2)<MATCH("яяя",$B:$B)) -> 1
J66: =(FLOOR(1+(ROW()-7)/4,1)>COUNTIF(Заказ,$E$3))*((ROW()+2)<MATCH("яяя",$B:$B)) -> 1
B67: Наименование товара | E67: =IF(FLOOR(1+(ROW()-7)/4,1)>COUNTIF(Заказ,$E$3),"",INDEX(Товар2,SMALL(IF(Заказ=$E$3,ROW(заказы[]),""),FLOOR(1+(ROW()-7)/4,1))-ROW(заказы[#Headers]),)) ->  | H67: № | I67: =IF(FLOOR(1+(ROW()-7)/4,1)>COUNTIF(Заказ,$E$3),"",INDEX(Номер2,SMALL(IF(Заказ=$E$3,ROW(заказы[]),""),FLOOR(1+(ROW()-7)/4,1))-ROW(заказы[#Headers]),)) ->  | J67: =(FLOOR(1+(ROW()-7)/4,1)>COUNTIF(Заказ,$E$3))*((ROW()+2)<MATCH("яяя",$B:$B)) -> 1
J68: =(FLOOR(1+(ROW()-7)/4,1)>COUNTIF(Заказ,$E$3))*((ROW()+2)<MATCH("яяя",$B:$B)) -> 1
B69: Заказываемое количество | E69: =IF(FLOOR(1+(ROW()-7)/4,1)>COUNTIF(Заказ,$E$3),"",INDEX(Количество,SMALL(IF(Заказ=$E$3,ROW(заказы[]),""),FLOOR(1+(ROW()-7)/4,1))-ROW(заказы[#Headers]),)) ->  | F69: ед. по цене | I69: =IF(FLOOR(1+(ROW()-7)/4,1)>COUNTIF(Заказ,$E$3),"",INDEX(Цена2,SMALL(IF(Заказ=$E$3,ROW(заказы[]),""),FLOOR(1+(ROW()-7)/4,1))-ROW(заказы[#Headers]),)) ->  | J69: =(FLOOR(1+(ROW()-7)/4,1)>COUNTIF(Заказ,$E$3))*((ROW()+2)<MATCH("яяя",$B:$B)) -> 1
J70: =(FLOOR(1+(ROW()-7)/4,1)>COUNTIF(Заказ,$E$3))*((ROW()+2)<MATCH("яяя",$B:$B)) -> 1
B71: Наименование товара | E71: =IF(FLOOR(1+(ROW()-7)/4,1)>COUNTIF(Заказ,$E$3),"",INDEX(Товар2,SMALL(IF(Заказ=$E$3,ROW(заказы[]),""),FLOOR(1+(ROW()-7)/4,1))-ROW(заказы[#Headers]),)) ->  | H71: № | I71: =IF(FLOOR(1+(ROW()-7)/4,1)>COUNTIF(Заказ,$E$3),"",INDEX(Номер2,SMALL(IF(Заказ=$E$3,ROW(заказы[]),""),FLOOR(1+(ROW()-7)/4,1))-ROW(заказы[#Headers]),)) ->  | J71: =(FLOOR(1+(ROW()-7)/4,1)>COUNTIF(Заказ,$E$3))*((ROW()+2)<MATCH("яяя",$B:$B)) -> 1
J72: =(FLOOR(1+(ROW()-7)/4,1)>COUNTIF(Заказ,$E$3))*((ROW()+2)<MATCH("яяя",$B:$B)) -> 1
B73: Заказываемое количество | E73: =IF(FLOOR(1+(ROW()-7)/4,1)>COUNTIF(Заказ,$E$3),"",INDEX(Количество,SMALL(IF(Заказ=$E$3,ROW(заказы[]),""),FLOOR(1+(ROW()-7)/4,1))-ROW(заказы[#Headers]),)) ->  | F73: ед. по цене | I73: =IF(FLOOR(1+(ROW()-7)/4,1)>COUNTIF(Заказ,$E$3),"",INDEX(Цена2,SMALL(IF(Заказ=$E$3,ROW(заказы[]),""),FLOOR(1+(ROW()-7)/4,1))-ROW(заказы[#Headers]),)) ->  | J73: =(FLOOR(1+(ROW()-7)/4,1)>COUNTIF(Заказ,$E$3))*((ROW()+2)<MATCH("яяя",$B:$B)) -> 1
J74: =(FLOOR(1+(ROW()-7)/4,1)>COUNTIF(Заказ,$E$3))*((ROW()+2)<MATCH("яяя",$B:$B)) -> 1
B75: Наименование товара | E75: =IF(FLOOR(1+(ROW()-7)/4,1)>COUNTIF(Заказ,$E$3),"",INDEX(Товар2,SMALL(IF(Заказ=$E$3,ROW(заказы[]),""),FLOOR(1+(ROW()-7)/4,1))-ROW(заказы[#Headers]),)) ->  | H75: № | I75: =IF(FLOOR(1+(ROW()-7)/4,1)>COUNTIF(Заказ,$E$3),"",INDEX(Номер2,SMALL(IF(Заказ=$E$3,ROW(заказы[]),""),FLOOR(1+(ROW()-7)/4,1))-ROW(заказы[#Headers]),)) ->  | J75: =(FLOOR(1+(ROW()-7)/4,1)>COUNTIF(Заказ,$E$3))*((ROW()+2)<MATCH("яяя",$B:$B)) -> 1
J76: =(FLOOR(1+(ROW()-7)/4,1)>COUNTIF(Заказ,$E$3))*((ROW()+2)<MATCH("яяя",$B:$B)) -> 1
B77: Заказываемое количество | E77: =IF(FLOOR(1+(ROW()-7)/4,1)>COUNTIF(Заказ,$E$3),"",INDEX(Количество,SMALL(IF(Заказ=$E$3,ROW(заказы[]),""),FLOOR(1+(ROW()-7)/4,1))-ROW(заказы[#Headers]),)) ->  | F77: ед. по цене | I77: =IF(FLOOR(1+(ROW()-7)/4,1)>COUNTIF(Заказ,$E$3),"",INDEX(Цена2,SMALL(IF(Заказ=$E$3,ROW(заказы[]),""),FLOOR(1+(ROW()-7)/4,1))-ROW(заказы[#Headers]),)) ->  | J77: =(FLOOR(1+(ROW()-7)/4,1)>COUNTIF(Заказ,$E$3))*((ROW()+2)<MATCH("яяя",$B:$B)) -> 1
J78: =(FLOOR(1+(ROW()-7)/4,1)>COUNTIF(Заказ,$E$3))*((ROW()+2)<MATCH("яяя",$B:$B)) -> 1
B79: Наименование товара | E79: =IF(FLOOR(1+(ROW()-7)/4,1)>COUNTIF(Заказ,$E$3),"",INDEX(Товар2,SMALL(IF(Заказ=$E$3,ROW(заказы[]),""),FLOOR(1+(ROW()-7)/4,1))-ROW(заказы[#Headers]),)) ->  | H79: № | I79: =IF(FLOOR(1+(ROW()-7)/4,1)>COUNTIF(Заказ,$E$3),"",INDEX(Номер2,SMALL(IF(Заказ=$E$3,ROW(заказы[]),""),FLOOR(1+(ROW()-7)/4,1))-ROW(заказы[#Headers]),)) ->  | J79: =(FLOOR(1+(ROW()-7)/4,1)>COUNTIF(Заказ,$E$3))*((ROW()+2)<MATCH("яяя",$B:$B)) -> 1
J80: =(FLOOR(1+(ROW()-7)/4,1)>COUNTIF(Заказ,$E$3))*((ROW()+2)<MATCH("яяя",$B:$B)) -> 1
B81: Заказываемое количество | E81: =IF(FLOOR(1+(ROW()-7)/4,1)>COUNTIF(Заказ,$E$3),"",INDEX(Количество,SMALL(IF(Заказ=$E$3,ROW(заказы[]),""),FLOOR(1+(ROW()-7)/4,1))-ROW(заказы[#Headers]),)) ->  | F81: ед. по цене | I81: =IF(FLOOR(1+(ROW()-7)/4,1)>COUNTIF(Заказ,$E$3),"",INDEX(Цена2,SMALL(IF(Заказ=$E$3,ROW(заказы[]),""),FLOOR(1+(ROW()-7)/4,1))-ROW(заказы[#Headers]),)) ->  | J81: =(FLOOR(1+(ROW()-7)/4,1)>COUNTIF(Заказ,$E$3))*((ROW()+2)<MATCH("яяя",$B:$B)) -> 1
J82: =(FLOOR(1+(ROW()-7)/4,1)>COUNTIF(Заказ,$E$3))*((ROW()+2)<MATCH("яяя",$B:$B)) -> 1
B83: Наименование товара | E83: =IF(FLOOR(1+(ROW()-7)/4,1)>COUNTIF(Заказ,$E$3),"",INDEX(Товар2,SMALL(IF(Заказ=$E$3,ROW(заказы[]),""),FLOOR(1+(ROW()-7)/4,1))-ROW(заказы[#Headers]),)) ->  | H83: № | I83: =IF(FLOOR(1+(ROW()-7)/4,1)>COUNTIF(Заказ,$E$3),"",INDEX(Номер2,SMALL(IF(Заказ=$E$3,ROW(заказы[]),""),FLOOR(1+(ROW()-7)/4,1))-ROW(заказы[#Headers]),)) ->  | J83: =(FLOOR(1+(ROW()-7)/4,1)>COUNTIF(Заказ,$E$3))*((ROW()+2)<MATCH("яяя",$B:$B)) -> 1
J84: =(FLOOR(1+(ROW()-7)/4,1)>COUNTIF(Заказ,$E$3))*((ROW()+2)<MATCH("яяя",$B:$B)) -> 1
B85: Заказываемое количество | E85: =IF(FLOOR(1+(ROW()-7)/4,1)>COUNTIF(Заказ,$E$3),"",INDEX(Количество,SMALL(IF(Заказ=$E$3,ROW(заказы[]),""),FLOOR(1+(ROW()-7)/4,1))-ROW(заказы[#Headers]),)) ->  | F85: ед. по цене | I85: =IF(FLOOR(1+(ROW()-7)/4,1)>COUNTIF(Заказ,$E$3),"",INDEX(Цена2,SMALL(IF(Заказ=$E$3,ROW(заказы[]),""),FLOOR(1+(ROW()-7)/4,1))-ROW(заказы[#Headers]),)) ->  | J85: =(FLOOR(1+(ROW()-7)/4,1)>COUNTIF(Заказ,$E$3))*((ROW()+2)<MATCH("яяя",$B:$B)) -> 1
J86: =(FLOOR(1+(ROW()-7)/4,1)>COUNTIF(Заказ,$E$3))*((ROW()+2)<MATCH("яяя",$B:$B)) -> 1
B87: Наименование товара | E87: =IF(FLOOR(1+(ROW()-7)/4,1)>COUNTIF(Заказ,$E$3),"",INDEX(Товар2,SMALL(IF(Заказ=$E$3,ROW(заказы[]),""),FLOOR(1+(ROW()-7)/4,1))-ROW(заказы[#Headers]),)) ->  | H87: № | I87: =IF(FLOOR(1+(ROW()-7)/4,1)>COUNTIF(Заказ,$E$3),"",INDEX(Номер2,SMALL(IF(Заказ=$E$3,ROW(заказы[]),""),FLOOR(1+(ROW()-7)/4,1))-ROW(заказы[#Headers]),)) ->  | J87: =(FLOOR(1+(ROW()-7)/4,1)>COUNTIF(Заказ,$E$3))*((ROW()+2)<MATCH("яяя",$B:$B)) -> 1
J88: =(FLOOR(1+(ROW()-7)/4,1)>COUNTIF(Заказ,$E$3))*((ROW()+2)<MATCH("яяя",$B:$B)) -> 1
B89: Заказываемое количество | E89: =IF(FLOOR(1+(ROW()-7)/4,1)>COUNTIF(Заказ,$E$3),"",INDEX(Количество,SMALL(IF(Заказ=$E$3,ROW(заказы[]),""),FLOOR(1+(ROW()-7)/4,1))-ROW(заказы[#Headers]),)) ->  | F89: ед. по цене | I89: =IF(FLOOR(1+(ROW()-7)/4,1)>COUNTIF(Заказ,$E$3),"",INDEX(Цена2,SMALL(IF(Заказ=$E$3,ROW(заказы[]),""),FLOOR(1+(ROW()-7)/4,1))-ROW(заказы[#Headers]),)) ->  | J89: =(FLOOR(1+(ROW()-7)/4,1)>COUNTIF(Заказ,$E$3))*((ROW()+2)<MATCH("яяя",$B:$B)) -> 1
J90: =(FLOOR(1+(ROW()-7)/4,1)>COUNTIF(Заказ,$E$3))*((ROW()+2)<MATCH("яяя",$B:$B)) -> 1
B91: Наименование товара | E91: =IF(FLOOR(1+(ROW()-7)/4,1)>COUNTIF(Заказ,$E$3),"",INDEX(Товар2,SMALL(IF(Заказ=$E$3,ROW(заказы[]),""),FLOOR(1+(ROW()-7)/4,1))-ROW(заказы[#Headers]),)) ->  | H91: № | I91: =IF(FLOOR(1+(ROW()-7)/4,1)>COUNTIF(Заказ,$E$3),"",INDEX(Номер2,SMALL(IF(Заказ=$E$3,ROW(заказы[]),""),FLOOR(1+(ROW()-7)/4,1))-ROW(заказы[#Headers]),)) ->  | J91: =(FLOOR(1+(ROW()-7)/4,1)>COUNTIF(Заказ,$E$3))*((ROW()+2)<MATCH("яяя",$B:$B)) -> 1
J92: =(FLOOR(1+(ROW()-7)/4,1)>COUNTIF(Заказ,$E$3))*((ROW()+2)<MATCH("яяя",$B:$B)) -> 1
B93: Заказываемое количество | E93: =IF(FLOOR(1+(ROW()-7)/4,1)>COUNTIF(Заказ,$E$3),"",INDEX(Количество,SMALL(IF(Заказ=$E$3,ROW(заказы[]),""),FLOOR(1+(ROW()-7)/4,1))-ROW(заказы[#Headers]),)) ->  | F93: ед. по цене | I93: =IF(FLOOR(1+(ROW()-7)/4,1)>COUNTIF(Заказ,$E$3),"",INDEX(Цена2,SMALL(IF(Заказ=$E$3,ROW(заказы[]),""),FLOOR(1+(ROW()-7)/4,1))-ROW(заказы[#Headers]),)) ->  | J93: =(FLOOR(1+(ROW()-7)/4,1)>COUNTIF(Заказ,$E$3))*((ROW()+2)<MATCH("яяя",$B:$B)) -> 1
J94: =(FLOOR(1+(ROW()-7)/4,1)>COUNTIF(Заказ,$E$3))*((ROW()+2)<MATCH("яяя",$B:$B)) -> 1
B95: Наименование товара | E95: =IF(FLOOR(1+(ROW()-7)/4,1)>COUNTIF(Заказ,$E$3),"",INDEX(Товар2,SMALL(IF(Заказ=$E$3,ROW(заказы[]),""),FLOOR(1+(ROW()-7)/4,1))-ROW(заказы[#Headers]),)) ->  | H95: № | I95: =IF(FLOOR(1+(ROW()-7)/4,1)>COUNTIF(Заказ,$E$3),"",INDEX(Номер2,SMALL(IF(Заказ=$E$3,ROW(заказы[]),""),FLOOR(1+(ROW()-7)/4,1))-ROW(заказы[#Headers]),)) ->  | J95: =(FLOOR(1+(ROW()-7)/4,1)>COUNTIF(Заказ,$E$3))*((ROW()+2)<MATCH("яяя",$B:$B)) -> 1
J96: =(FLOOR(1+(ROW()-7)/4,1)>COUNTIF(Заказ,$E$3))*((ROW()+2)<MATCH("яяя",$B:$B)) -> 1
B97: Заказываемое количество | E97: =IF(FLOOR(1+(ROW()-7)/4,1)>COUNTIF(Заказ,$E$3),"",INDEX(Количество,SMALL(IF(Заказ=$E$3,ROW(заказы[]),""),FLOOR(1+(ROW()-7)/4,1))-ROW(заказы[#Headers]),)) ->  | F97: ед. по цене | I97: =IF(FLOOR(1+(ROW()-7)/4,1)>COUNTIF(Заказ,$E$3),"",INDEX(Цена2,SMALL(IF(Заказ=$E$3,ROW(заказы[]),""),FLOOR(1+(ROW()-7)/4,1))-ROW(заказы[#Headers]),)) ->  | J97: =(FLOOR(1+(ROW()-7)/4,1)>COUNTIF(Заказ,$E$3))*((ROW()+2)<MATCH("яяя",$B:$B)) -> 1
J98: =(FLOOR(1+(ROW()-7)/4,1)>COUNTIF(Заказ,$E$3))*((ROW()+2)<MATCH("яяя",$B:$B)) -> 1
B99: Наименование товара | E99: =IF(FLOOR(1+(ROW()-7)/4,1)>COUNTIF(Заказ,$E$3),"",INDEX(Товар2,SMALL(IF(Заказ=$E$3,ROW(заказы[]),""),FLOOR(1+(ROW()-7)/4,1))-ROW(заказы[#Headers]),)) ->  | H99: № | I99: =IF(FLOOR(1+(ROW()-7)/4,1)>COUNTIF(Заказ,$E$3),"",INDEX(Номер2,SMALL(IF(Заказ=$E$3,ROW(заказы[]),""),FLOOR(1+(ROW()-7)/4,1))-ROW(заказы[#Headers]),)) ->  | J99: =(FLOOR(1+(ROW()-7)/4,1)>COUNTIF(Заказ,$E$3))*((ROW()+2)<MATCH("яяя",$B:$B)) -> 1
J100: =(FLOOR(1+(ROW()-7)/4,1)>COUNTIF(Заказ,$E$3))*((ROW()+2)<MATCH("яяя",$B:$B)) -> 1
B101: Заказываемое количество | E101: =IF(FLOOR(1+(ROW()-7)/4,1)>COUNTIF(Заказ,$E$3),"",INDEX(Количество,SMALL(IF(Заказ=$E$3,ROW(заказы[]),""),FLOOR(1+(ROW()-7)/4,1))-ROW(заказы[#Headers]),)) ->  | F101: ед. по цене | I101: =IF(FLOOR(1+(ROW()-7)/4,1)>COUNTIF(Заказ,$E$3),"",INDEX(Цена2,SMALL(IF(Заказ=$E$3,ROW(заказы[]),""),FLOOR(1+(ROW()-7)/4,1))-ROW(заказы[#Headers]),)) ->  | J101: =(FLOOR(1+(ROW()-7)/4,1)>COUNTIF(Заказ,$E$3))*((ROW()+2)<MATCH("яяя",$B:$B)) -> 1
J102: =(FLOOR(1+(ROW()-7)/4,1)>COUNTIF(Заказ,$E$3))*((ROW()+2)<MATCH("яяя",$B:$B)) -> 1
B103: Наименование товара | E103: =IF(FLOOR(1+(ROW()-7)/4,1)>COUNTIF(Заказ,$E$3),"",INDEX(Товар2,SMALL(IF(Заказ=$E$3,ROW(заказы[]),""),FLOOR(1+(ROW()-7)/4,1))-ROW(заказы[#Headers]),)) ->  | H103: № | I103: =IF(FLOOR(1+(ROW()-7)/4,1)>COUNTIF(Заказ,$E$3),"",INDEX(Номер2,SMALL(IF(Заказ=$E$3,ROW(заказы[]),""),FLOOR(1+(ROW()-7)/4,1))-ROW(заказы[#Headers]),)) ->  | J103: =(FLOOR(1+(ROW()-7)/4,1)>COUNTIF(Заказ,$E$3))*((ROW()+2)<MATCH("яяя",$B:$B)) -> 1
J104: =(FLOOR(1+(ROW()-7)/4,1)>COUNTIF(Заказ,$E$3))*((ROW()+2)<MATCH("яяя",$B:$B)) -> 1
B105: Заказываемое количество | E105: =IF(FLOOR(1+(ROW()-7)/4,1)>COUNTIF(Заказ,$E$3),"",INDEX(Количество,SMALL(IF(Заказ=$E$3,ROW(заказы[]),""),FLOOR(1+(ROW()-7)/4,1))-ROW(заказы[#Headers]),)) ->  | F105: ед. по цене | I105: =IF(FLOOR(1+(ROW()-7)/4,1)>COUNTIF(Заказ,$E$3),"",INDEX(Цена2,SMALL(IF(Заказ=$E$3,ROW(заказы[]),""),FLOOR(1+(ROW()-7)/4,1))-ROW(заказы[#Headers]),)) ->  | J105: =(FLOOR(1+(ROW()-7)/4,1)>COUNTIF(Заказ,$E$3))*((ROW()+2)<MATCH("яяя",$B:$B)) -> 1
J106: =(FLOOR(1+(ROW()-7)/4,1)>COUNTIF(Заказ,$E$3))*((ROW()+2)<MATCH("яяя",$B:$B)) -> 1
B107: Наименование товара | E107: =IF(FLOOR(1+(ROW()-7)/4,1)>COUNTIF(Заказ,$E$3),"",INDEX(Товар2,SMALL(IF(Заказ=$E$3,ROW(заказы[]),""),FLOOR(1+(ROW()-7)/4,1))-ROW(заказы[#Headers]),)) ->  | H107: № | I107: =IF(FLOOR(1+(ROW()-7)/4,1)>COUNTIF(Заказ,$E$3),"",INDEX(Номер2,SMALL(IF(Заказ=$E$3,ROW(заказы[]),""),FLOOR(1+(ROW()-7)/4,1))-ROW(заказы[#Headers]),)) ->  | J107: =(FLOOR(1+(ROW()-7)/4,1)>COUNTIF(Заказ,$E$3))*((ROW()+2)<MATCH("яяя",$B:$B)) -> 1
J108: =(FLOOR(1+(ROW()-7)/4,1)>COUNTIF(Заказ,$E$3))*((ROW()+2)<MATCH("яяя",$B:$B)) -> 1
B109: Заказываемое количество | E109: =IF(FLOOR(1+(ROW()-7)/4,1)>COUNTIF(Заказ,$E$3),"",INDEX(Количество,SMALL(IF(Заказ=$E$3,ROW(заказы[]),""),FLOOR(1+(ROW()-7)/4,1))-ROW(заказы[#Headers]),)) ->  | F109: ед. по цене | I109: =IF(FLOOR(1+(ROW()-7)/4,1)>COUNTIF(Заказ,$E$3),"",INDEX(Цена2,SMALL(IF(Заказ=$E$3,ROW(заказы[]),""),FLOOR(1+(ROW()-7)/4,1))-ROW(заказы[#Headers]),)) ->  | J109: =(FLOOR(1+(ROW()-7)/4,1)>COUNTIF(Заказ,$E$3))*((ROW()+2)<MATCH("яяя",$B:$B)) -> 1
J110: =(FLOOR(1+(ROW()-7)/4,1)>COUNTIF(Заказ,$E$3))*((ROW()+2)<MATCH("яяя",$B:$B)) -> 1
B111: Наименование товара | E111: =IF(FLOOR(1+(ROW()-7)/4,1)>COUNTIF(Заказ,$E$3),"",INDEX(Товар2,SMALL(IF(Заказ=$E$3,ROW(заказы[]),""),FLOOR(1+(ROW()-7)/4,1))-ROW(заказы[#Headers]),)) ->  | H111: № | I111: =IF(FLOOR(1+(ROW()-7)/4,1)>COUNTIF(Заказ,$E$3),"",INDEX(Номер2,SMALL(IF(Заказ=$E$3,ROW(заказы[]),""),FLOOR(1+(ROW()-7)/4,1))-ROW(заказы[#Headers]),)) ->  | J111: =(FLOOR(1+(ROW()-7)/4,1)>COUNTIF(Заказ,$E$3))*((ROW()+2)<MATCH("яяя",$B:$B)) -> 1
J112: =(FLOOR(1+(ROW()-7)/4,1)>COUNTIF(Заказ,$E$3))*((ROW()+2)<MATCH("яяя",$B:$B)) -> 1
B113: Заказываемое количество | E113: =IF(FLOOR(1+(ROW()-7)/4,1)>COUNTIF(Заказ,$E$3),"",INDEX(Количество,SMALL(IF(Заказ=$E$3,ROW(заказы[]),""),FLOOR(1+(ROW()-7)/4,1))-ROW(заказы[#Headers]),)) ->  | F113: ед. по цене | I113: =IF(FLOOR(1+(ROW()-7)/4,1)>COUNTIF(Заказ,$E$3),"",INDEX(Цена2,SMALL(IF(Заказ=$E$3,ROW(заказы[]),""),FLOOR(1+(ROW()-7)/4,1))-ROW(заказы[#Headers]),)) ->  | J113: =(FLOOR(1+(ROW()-7)/4,1)>COUNTIF(Заказ,$E$3))*((ROW()+2)<MATCH("яяя",$B:$B)) -> 1
J114: =(FLOOR(1+(ROW()-7)/4,1)>COUNTIF(Заказ,$E$3))*((ROW()+2)<MATCH("яяя",$B:$B)) -> 1
B115: Наименование товара | E115: =IF(FLOOR(1+(ROW()-7)/4,1)>COUNTIF(Заказ,$E$3),"",INDEX(Товар2,SMALL(IF(Заказ=$E$3,ROW(заказы[]),""),FLOOR(1+(ROW()-7)/4,1))-ROW(заказы[#Headers]),)) ->  | H115: № | I115: =IF(FLOOR(1+(ROW()-7)/4,1)>COUNTIF(Заказ,$E$3),"",INDEX(Номер2,SMALL(IF(Заказ=$E$3,ROW(заказы[]),""),FLOOR(1+(ROW()-7)/4,1))-ROW(заказы[#Headers]),)) ->  | J115: =(FLOOR(1+(ROW()-7)/4,1)>COUNTIF(Заказ,$E$3))*((ROW()+2)<MATCH("яяя",$B:$B)) -> 1
J116: =(FLOOR(1+(ROW()-7)/4,1)>COUNTIF(Заказ,$E$3))*((ROW()+2)<MATCH("яяя",$B:$B)) -> 1
B117: Заказываемое количество | E117: =IF(FLOOR(1+(ROW()-7)/4,1)>COUNTIF(Заказ,$E$3),"",INDEX(Количество,SMALL(IF(Заказ=$E$3,ROW(заказы[]),""),FLOOR(1+(ROW()-7)/4,1))-ROW(заказы[#Headers]),)) ->  | F117: ед. по цене | I117: =IF(FLOOR(1+(ROW()-7)/4,1)>COUNTIF(Заказ,$E$3),"",INDEX(Цена2,SMALL(IF(Заказ=$E$3,ROW(заказы[]),""),FLOOR(1+(ROW()-7)/4,1))-ROW(заказы[#Headers]),)) ->  | J117: =(FLOOR(1+(ROW()-7)/4,1)>COUNTIF(Заказ,$E$3))*((ROW()+2)<MATCH("яяя",$B:$B)) -> 1
J118: =(FLOOR(1+(ROW()-7)/4,1)>COUNTIF(Заказ,$E$3))*((ROW()+2)<MATCH("яяя",$B:$B)) -> 1
B119: Наименование товара | E119: =IF(FLOOR(1+(ROW()-7)/4,1)>COUNTIF(Заказ,$E$3),"",INDEX(Товар2,SMALL(IF(Заказ=$E$3,ROW(заказы[]),""),FLOOR(1+(ROW()-7)/4,1))-ROW(заказы[#Headers]),)) ->  | H119: № | I119: =IF(FLOOR(1+(ROW()-7)/4,1)>COUNTIF(Заказ,$E$3),"",INDEX(Номер2,SMALL(IF(Заказ=$E$3,ROW(заказы[]),""),FLOOR(1+(ROW()-7)/4,1))-ROW(заказы[#Headers]),)) ->  | J119: =(FLOOR(1+(ROW()-7)/4,1)>COUNTIF(Заказ,$E$3))*((ROW()+2)<MATCH("яяя",$B:$B)) -> 1
J120: =(FLOOR(1+(ROW()-7)/4,1)>COUNTIF(Заказ,$E$3))*((ROW()+2)<MATCH("яяя",$B:$B)) -> 1
B121: Заказываемое количество | E121: =IF(FLOOR(1+(ROW()-7)/4,1)>COUNTIF(Заказ,$E$3),"",INDEX(Количество,SMALL(IF(Заказ=$E$3,ROW(заказы[]),""),FLOOR(1+(ROW()-7)/4,1))-ROW(заказы[#Headers]),)) ->  | F121: ед. по цене | I121: =IF(FLOOR(1+(ROW()-7)/4,1)>COUNTIF(Заказ,$E$3),"",INDEX(Цена2,SMALL(IF(Заказ=$E$3,ROW(заказы[]),""),FLOOR(1+(ROW()-7)/4,1))-ROW(заказы[#Headers]),)) ->  | J121: =(FLOOR(1+(ROW()-7)/4,1)>COUNTIF(Заказ,$E$3))*((ROW()+2)<MATCH("яяя",$B:$B)) -> 1
J122: =(FLOOR(1+(ROW()-7)/4,1)>COUNTIF(Заказ,$E$3))*((ROW()+2)<MATCH("яяя",$B:$B)) -> 1
B123: Наименование товара | E123: =IF(FLOOR(1+(ROW()-7)/4,1)>COUNTIF(Заказ,$E$3),"",INDEX(Товар2,SMALL(IF(Заказ=$E$3,ROW(заказы[]),""),FLOOR(1+(ROW()-7)/4,1))-ROW(заказы[#Headers]),)) ->  | H123: № | I123: =IF(FLOOR(1+(ROW()-7)/4,1)>COUNTIF(Заказ,$E$3),"",INDEX(Номер2,SMALL(IF(Заказ=$E$3,ROW(заказы[]),""),FLOOR(1+(ROW()-7)/4,1))-ROW(заказы[#Headers]),)) ->  | J123: =(FLOOR(1+(ROW()-7)/4,1)>COUNTIF(Заказ,$E$3))*((ROW()+2)<MATCH("яяя",$B:$B)) -> 1
J124: =(FLOOR(1+(ROW()-7)/4,1)>COUNTIF(Заказ,$E$3))*((ROW()+2)<MATCH("яяя",$B:$B)) -> 1
B125: Заказываемое количество | E125: =IF(FLOOR(1+(ROW()-7)/4,1)>COUNTIF(Заказ,$E$3),"",INDEX(Количество,SMALL(IF(Заказ=$E$3,ROW(заказы[]),""),FLOOR(1+(ROW()-7)/4,1))-ROW(заказы[#Headers]),)) ->  | F125: ед. по цене | I125: =IF(FLOOR(1+(ROW()-7)/4,1)>COUNTIF(Заказ,$E$3),"",INDEX(Цена2,SMALL(IF(Заказ=$E$3,ROW(заказы[]),""),FLOOR(1+(ROW()-7)/4,1))-ROW(заказы[#Headers]),)) ->  | J125: =(FLOOR(1+(ROW()-7)/4,1)>COUNTIF(Заказ,$E$3))*((ROW()+2)<MATCH("яяя",$B:$B)) -> 1
J126: =(FLOOR(1+(ROW()-7)/4,1)>COUNTIF(Заказ,$E$3))*((ROW()+2)<MATCH("яяя",$B:$B)) -> 1
B127: Наименование товара | E127: =IF(FLOOR(1+(ROW()-7)/4,1)>COUNTIF(Заказ,$E$3),"",INDEX(Товар2,SMALL(IF(Заказ=$E$3,ROW(заказы[]),""),FLOOR(1+(ROW()-7)/4,1))-ROW(заказы[#Headers]),)) ->  | H127: № | I127: =IF(FLOOR(1+(ROW()-7)/4,1)>COUNTIF(Заказ,$E$3),"",INDEX(Номер2,SMALL(IF(Заказ=$E$3,ROW(заказы[]),""),FLOOR(1+(ROW()-7)/4,1))-ROW(заказы[#Headers]),)) ->  | J127: =(FLOOR(1+(ROW()-7)/4,1)>COUNTIF(Заказ,$E$3))*((ROW()+2)<MATCH("яяя",$B:$B)) -> 1
J128: =(FLOOR(1+(ROW()-7)/4,1)>COUNTIF(Заказ,$E$3))*((ROW()+2)<MATCH("яяя",$B:$B)) -> 1
B129: Заказываемое количество | E129: =IF(FLOOR(1+(ROW()-7)/4,1)>COUNTIF(Заказ,$E$3),"",INDEX(Количество,SMALL(IF(Заказ=$E$3,ROW(заказы[]),""),FLOOR(1+(ROW()-7)/4,1))-ROW(заказы[#Headers]),)) ->  | F129: ед. по цене | I129: =IF(FLOOR(1+(ROW()-7)/4,1)>COUNTIF(Заказ,$E$3),"",INDEX(Цена2,SMALL(IF(Заказ=$E$3,ROW(заказы[]),""),FLOOR(1+(ROW()-7)/4,1))-ROW(заказы[#Headers]),)) ->  | J129: =(FLOOR(1+(ROW()-7)/4,1)>COUNTIF(Заказ,$E$3))*((ROW()+2)<MATCH("яяя",$B:$B)) -> 1
J130: =(FLOOR(1+(ROW()-7)/4,1)>COUNTIF(Заказ,$E$3))*((ROW()+2)<MATCH("яяя",$B:$B)) -> 1
B131: Наименование товара | E131: =IF(FLOOR(1+(ROW()-7)/4,1)>COUNTIF(Заказ,$E$3),"",INDEX(Товар2,SMALL(IF(Заказ=$E$3,ROW(заказы[]),""),FLOOR(1+(ROW()-7)/4,1))-ROW(заказы[#Headers]),)) ->  | H131: № | I131: =IF(FLOOR(1+(ROW()-7)/4,1)>COUNTIF(Заказ,$E$3),"",INDEX(Номер2,SMALL(IF(Заказ=$E$3,ROW(заказы[]),""),FLOOR(1+(ROW()-7)/4,1))-ROW(заказы[#Headers]),)) ->  | J131: =(FLOOR(1+(ROW()-7)/4,1)>COUNTIF(Заказ,$E$3))*((ROW()+2)<MATCH("яяя",$B:$B)) -> 1
J132: =(FLOOR(1+(ROW()-7)/4,1)>COUNTIF(Заказ,$E$3))*((ROW()+2)<MATCH("яяя",$B:$B)) -> 1
B133: Заказываемое количество | E133: =IF(FLOOR(1+(ROW()-7)/4,1)>COUNTIF(Заказ,$E$3),"",INDEX(Количество,SMALL(IF(Заказ=$E$3,ROW(заказы[]),""),FLOOR(1+(ROW()-7)/4,1))-ROW(заказы[#Headers]),)) ->  | F133: ед. по цене | I133: =IF(FLOOR(1+(ROW()-7)/4,1)>COUNTIF(Заказ,$E$3),"",INDEX(Цена2,SMALL(IF(Заказ=$E$3,ROW(заказы[]),""),FLOOR(1+(ROW()-7)/4,1))-ROW(заказы[#Headers]),)) ->  | J133: =(FLOOR(1+(ROW()-7)/4,1)>COUNTIF(Заказ,$E$3))*((ROW()+2)<MATCH("яяя",$B:$B)) -> 1
J134: =(FLOOR(1+(ROW()-7)/4,1)>COUNTIF(Заказ,$E$3))*((ROW()+2)<MATCH("яяя",$B:$B)) -> 1
B135: Наименование товара | E135: =IF(FLOOR(1+(ROW()-7)/4,1)>COUNTIF(Заказ,$E$3),"",INDEX(Товар2,SMALL(IF(Заказ=$E$3,ROW(заказы[]),""),FLOOR(1+(ROW()-7)/4,1))-ROW(заказы[#Headers]),)) ->  | H135: № | I135: =IF(FLOOR(1+(ROW()-7)/4,1)>COUNTIF(Заказ,$E$3),"",INDEX(Номер2,SMALL(IF(Заказ=$E$3,ROW(заказы[]),""),FLOOR(1+(ROW()-7)/4,1))-ROW(заказы[#Headers]),)) ->  | J135: =(FLOOR(1+(ROW()-7)/4,1)>COUNTIF(Заказ,$E$3))*((ROW()+2)<MATCH("яяя",$B:$B)) -> 1
J136: =(FLOOR(1+(ROW()-7)/4,1)>COUNTIF(Заказ,$E$3))*((ROW()+2)<MATCH("яяя",$B:$B)) -> 1
B137: Заказываемое количество | E137: =IF(FLOOR(1+(ROW()-7)/4,1)>COUNTIF(Заказ,$E$3),"",INDEX(Количество,SMALL(IF(Заказ=$E$3,ROW(заказы[]),""),FLOOR(1+(ROW()-7)/4,1))-ROW(заказы[#Headers]),)) ->  | F137: ед. по цене | I137: =IF(FLOOR(1+(ROW()-7)/4,1)>COUNTIF(Заказ,$E$3),"",INDEX(Цена2,SMALL(IF(Заказ=$E$3,ROW(заказы[]),""),FLOOR(1+(ROW()-7)/4,1))-ROW(заказы[#Headers]),)) ->  | J137: =(FLOOR(1+(ROW()-7)/4,1)>COUNTIF(Заказ,$E$3))*((ROW()+2)<MATCH("яяя",$B:$B)) -> 1
J138: =(FLOOR(1+(ROW()-7)/4,1)>COUNTIF(Заказ,$E$3))*((ROW()+2)<MATCH("яяя",$B:$B)) -> 1
B139: Наименование товара | E139: =IF(FLOOR(1+(ROW()-7)/4,1)>COUNTIF(Заказ,$E$3),"",INDEX(Товар2,SMALL(IF(Заказ=$E$3,ROW(заказы[]),""),FLOOR(1+(ROW()-7)/4,1))-ROW(заказы[#Headers]),)) ->  | H139: № | I139: =IF(FLOOR(1+(ROW()-7)/4,1)>COUNTIF(Заказ,$E$3),"",INDEX(Номер2,SMALL(IF(Заказ=$E$3,ROW(заказы[]),""),FLOOR(1+(ROW()-7)/4,1))-ROW(заказы[#Headers]),)) ->  | J139: =(FLOOR(1+(ROW()-7)/4,1)>COUNTIF(Заказ,$E$3))*((ROW()+2)<MATCH("яяя",$B:$B)) -> 1
J140: =(FLOOR(1+(ROW()-7)/4,1)>COUNTIF(Заказ,$E$3))*((ROW()+2)<MATCH("яяя",$B:$B)) -> 1
B141: Заказываемое количество | E141: =IF(FLOOR(1+(ROW()-7)/4,1)>COUNTIF(Заказ,$E$3),"",INDEX(Количество,SMALL(IF(Заказ=$E$3,ROW(заказы[]),""),FLOOR(1+(ROW()-7)/4,1))-ROW(заказы[#Headers]),)) ->  | F141: ед. по цене | I141: =IF(FLOOR(1+(ROW()-7)/4,1)>COUNTIF(Заказ,$E$3),"",INDEX(Цена2,SMALL(IF(Заказ=$E$3,ROW(заказы[]),""),FLOOR(1+(ROW()-7)/4,1))-ROW(заказы[#Headers]),)) ->  | J141: =(FLOOR(1+(ROW()-7)/4,1)>COUNTIF(Заказ,$E$3))*((ROW()+2)<MATCH("яяя",$B:$B)) -> 1
J142: =(FLOOR(1+(ROW()-7)/4,1)>COUNTIF(Заказ,$E$3))*((ROW()+2)<MATCH("яяя",$B:$B)) -> 1
B143: Наименование товара | E143: =IF(FLOOR(1+(ROW()-7)/4,1)>COUNTIF(Заказ,$E$3),"",INDEX(Товар2,SMALL(IF(Заказ=$E$3,ROW(заказы[]),""),FLOOR(1+(ROW()-7)/4,1))-ROW(заказы[#Headers]),)) ->  | H143: № | I143: =IF(FLOOR(1+(ROW()-7)/4,1)>COUNTIF(Заказ,$E$3),"",INDEX(Номер2,SMALL(IF(Заказ=$E$3,ROW(заказы[]),""),FLOOR(1+(ROW()-7)/4,1))-ROW(заказы[#Headers]),)) ->  | J143: =(FLOOR(1+(ROW()-7)/4,1)>COUNTIF(Заказ,$E$3))*((ROW()+2)<MATCH("яяя",$B:$B)) -> 1
J144: =(FLOOR(1+(ROW()-7)/4,1)>COUNTIF(Заказ,$E$3))*((ROW()+2)<MATCH("яяя",$B:$B)) -> 1
B145: Заказываемое количество | E145: =IF(FLOOR(1+(ROW()-7)/4,1)>COUNTIF(Заказ,$E$3),"",INDEX(Количество,SMALL(IF(Заказ=$E$3,ROW(заказы[]),""),FLOOR(1+(ROW()-7)/4,1))-ROW(заказы[#Headers]),)) ->  | F145: ед. по цене | I145: =IF(FLOOR(1+(ROW()-7)/4,1)>COUNTIF(Заказ,$E$3),"",INDEX(Цена2,SMALL(IF(Заказ=$E$3,ROW(заказы[]),""),FLOOR(1+(ROW()-7)/4,1))-ROW(заказы[#Headers]),)) ->  | J145: =(FLOOR(1+(ROW()-7)/4,1)>COUNTIF(Заказ,$E$3))*((ROW()+2)<MATCH("яяя",$B:$B)) -> 1
J146: =(FLOOR(1+(ROW()-7)/4,1)>COUNTIF(Заказ,$E$3))*((ROW()+2)<MATCH("яяя",$B:$B)) -> 1
B147: Наименование товара | E147: =IF(FLOOR(1+(ROW()-7)/4,1)>COUNTIF(Заказ,$E$3),"",INDEX(Товар2,SMALL(IF(Заказ=$E$3,ROW(заказы[]),""),FLOOR(1+(ROW()-7)/4,1))-ROW(заказы[#Headers]),)) ->  | H147: № | I147: =IF(FLOOR(1+(ROW()-7)/4,1)>COUNTIF(Заказ,$E$3),"",INDEX(Номер2,SMALL(IF(Заказ=$E$3,ROW(заказы[]),""),FLOOR(1+(ROW()-7)/4,1))-ROW(заказы[#Headers]),)) ->  | J147: =(FLOOR(1+(ROW()-7)/4,1)>COUNTIF(Заказ,$E$3))*((ROW()+2)<MATCH("яяя",$B:$B)) -> 1
J148: =(FLOOR(1+(ROW()-7)/4,1)>COUNTIF(Заказ,$E$3))*((ROW()+2)<MATCH("яяя",$B:$B)) -> 1
B149: Заказываемое количество | E149: =IF(FLOOR(1+(ROW()-7)/4,1)>COUNTIF(Заказ,$E$3),"",INDEX(Количество,SMALL(IF(Заказ=$E$3,ROW(заказы[]),""),FLOOR(1+(ROW()-7)/4,1))-ROW(заказы[#Headers]),)) ->  | F149: ед. по цене | I149: =IF(FLOOR(1+(ROW()-7)/4,1)>COUNTIF(Заказ,$E$3),"",INDEX(Цена2,SMALL(IF(Заказ=$E$3,ROW(заказы[]),""),FLOOR(1+(ROW()-7)/4,1))-ROW(заказы[#Headers]),)) ->  | J149: =(FLOOR(1+(ROW()-7)/4,1)>COUNTIF(Заказ,$E$3))*((ROW()+2)<MATCH("яяя",$B:$B)) -> 1
J150: =(FLOOR(1+(ROW()-7)/4,1)>COUNTIF(Заказ,$E$3))*((ROW()+2)<MATCH("яяя",$B:$B)) -> 1
B151: Наименование товара | E151: =IF(FLOOR(1+(ROW()-7)/4,1)>COUNTIF(Заказ,$E$3),"",INDEX(Товар2,SMALL(IF(Заказ=$E$3,ROW(заказы[]),""),FLOOR(1+(ROW()-7)/4,1))-ROW(заказы[#Headers]),)) ->  | H151: № | I151: =IF(FLOOR(1+(ROW()-7)/4,1)>COUNTIF(Заказ,$E$3),"",INDEX(Номер2,SMALL(IF(Заказ=$E$3,ROW(заказы[]),""),FLOOR(1+(ROW()-7)/4,1))-ROW(заказы[#Headers]),)) ->  | J151: =(FLOOR(1+(ROW()-7)/4,1)>COUNTIF(Заказ,$E$3))*((ROW()+2)<MATCH("яяя",$B:$B)) -> 1
J152: =(FLOOR(1+(ROW()-7)/4,1)>COUNTIF(Заказ,$E$3))*((ROW()+2)<MATCH("яяя",$B:$B)) -> 1
B153: Заказываемое количество | E153: =IF(FLOOR(1+(ROW()-7)/4,1)>COUNTIF(Заказ,$E$3),"",INDEX(Количество,SMALL(IF(Заказ=$E$3,ROW(заказы[]),""),FLOOR(1+(ROW()-7)/4,1))-ROW(заказы[#Headers]),)) ->  | F153: ед. по цене | I153: =IF(FLOOR(1+(ROW()-7)/4,1)>COUNTIF(Заказ,$E$3),"",INDEX(Цена2,SMALL(IF(Заказ=$E$3,ROW(заказы[]),""),FLOOR(1+(ROW()-7)/4,1))-ROW(заказы[#Headers]),)) ->  | J153: =(FLOOR(1+(ROW()-7)/4,1)>COUNTIF(Заказ,$E$3))*((ROW()+2)<MATCH("яяя",$B:$B)) -> 1
J154: =(FLOOR(1+(ROW()-7)/4,1)>COUNTIF(Заказ,$E$3))*((ROW()+2)<MATCH("яяя",$B:$B)) -> 1
B155: Наименование товара | E155: =IF(FLOOR(1+(ROW()-7)/4,1)>COUNTIF(Заказ,$E$3),"",INDEX(Товар2,SMALL(IF(Заказ=$E$3,ROW(заказы[]),""),FLOOR(1+(ROW()-7)/4,1))-ROW(заказы[#Headers]),)) ->  | H155: № | I155: =IF(FLOOR(1+(ROW()-7)/4,1)>COUNTIF(Заказ,$E$3),"",INDEX(Номер2,SMALL(IF(Заказ=$E$3,ROW(заказы[]),""),FLOOR(1+(ROW()-7)/4,1))-ROW(заказы[#Headers]),)) ->  | J155: =(FLOOR(1+(ROW()-7)/4,1)>COUNTIF(Заказ,$E$3))*((ROW()+2)<MATCH("яяя",$B:$B)) -> 1
J156: =(FLOOR(1+(ROW()-7)/4,1)>COUNTIF(Заказ,$E$3))*((ROW()+2)<MATCH("яяя",$B:$B)) -> 1
B157: Заказываемое количество | E157: =IF(FLOOR(1+(ROW()-7)/4,1)>COUNTIF(Заказ,$E$3),"",INDEX(Количество,SMALL(IF(Заказ=$E$3,ROW(заказы[]),""),FLOOR(1+(ROW()-7)/4,1))-ROW(заказы[#Headers]),)) ->  | F157: ед. по цене | I157: =IF(FLOOR(1+(ROW()-7)/4,1)>COUNTIF(Заказ,$E$3),"",INDEX(Цена2,SMALL(IF(Заказ=$E$3,ROW(заказы[]),""),FLOOR(1+(ROW()-7)/4,1))-ROW(заказы[#Headers]),)) ->  | J157: =(FLOOR(1+(ROW()-7)/4,1)>COUNTIF(Заказ,$E$3))*((ROW()+2)<MATCH("яяя",$B:$B)) -> 1
J158: =(FLOOR(1+(ROW()-7)/4,1)>COUNTIF(Заказ,$E$3))*((ROW()+2)<MATCH("яяя",$B:$B)) -> 1
B159: Наименование товара | E159: =IF(FLOOR(1+(ROW()-7)/4,1)>COUNTIF(Заказ,$E$3),"",INDEX(Товар2,SMALL(IF(Заказ=$E$3,ROW(заказы[]),""),FLOOR(1+(ROW()-7)/4,1))-ROW(заказы[#Headers]),)) ->  | H159: № | I159: =IF(FLOOR(1+(ROW()-7)/4,1)>COUNTIF(Заказ,$E$3),"",INDEX(Номер2,SMALL(IF(Заказ=$E$3,ROW(заказы[]),""),FLOOR(1+(ROW()-7)/4,1))-ROW(заказы[#Headers]),)) ->  | J159: =(FLOOR(1+(ROW()-7)/4,1)>COUNTIF(Заказ,$E$3))*((ROW()+2)<MATCH("яяя",$B:$B)) -> 1
J160: =(FLOOR(1+(ROW()-7)/4,1)>COUNTIF(Заказ,$E$3))*((ROW()+2)<MATCH("яяя",$B:$B)) -> 1
B161: Заказываемое количество | E161: =IF(FLOOR(1+(ROW()-7)/4,1)>COUNTIF(Заказ,$E$3),"",INDEX(Количество,SMALL(IF(Заказ=$E$3,ROW(заказы[]),""),FLOOR(1+(ROW()-7)/4,1))-ROW(заказы[#Headers]),)) ->  | F161: ед. по цене | I161: =IF(FLOOR(1+(ROW()-7)/4,1)>COUNTIF(Заказ,$E$3),"",INDEX(Цена2,SMALL(IF(Заказ=$E$3,ROW(заказы[]),""),FLOOR(1+(ROW()-7)/4,1))-ROW(заказы[#Headers]),)) ->  | J161: =(FLOOR(1+(ROW()-7)/4,1)>COUNTIF(Заказ,$E$3))*((ROW()+2)<MATCH("яяя",$B:$B)) -> 1
J162: =(FLOOR(1+(ROW()-7)/4,1)>COUNTIF(Заказ,$E$3))*((ROW()+2)<MATCH("яяя",$B:$B)) -> 1
B163: Наименование товара | E163: =IF(FLOOR(1+(ROW()-7)/4,1)>COUNTIF(Заказ,$E$3),"",INDEX(Товар2,SMALL(IF(Заказ=$E$3,ROW(заказы[]),""),FLOOR(1+(ROW()-7)/4,1))-ROW(заказы[#Headers]),)) ->  | H163: № | I163: =IF(FLOOR(1+(ROW()-7)/4,1)>COUNTIF(Заказ,$E$3),"",INDEX(Номер2,SMALL(IF(Заказ=$E$3,ROW(заказы[]),""),FLOOR(1+(ROW()-7)/4,1))-ROW(заказы[#Headers]),)) ->  | J163: =(FLOOR(1+(ROW()-7)/4,1)>COUNTIF(Заказ,$E$3))*((ROW()+2)<MATCH("яяя",$B:$B)) -> 1
J164: =(FLOOR(1+(ROW()-7)/4,1)>COUNTIF(Заказ,$E$3))*((ROW()+2)<MATCH("яяя",$B:$B)) -> 1
B165: Заказываемое количество | E165: =IF(FLOOR(1+(ROW()-7)/4,1)>COUNTIF(Заказ,$E$3),"",INDEX(Количество,SMALL(IF(Заказ=$E$3,ROW(заказы[]),""),FLOOR(1+(ROW()-7)/4,1))-ROW(заказы[#Headers]),)) ->  | F165: ед. по цене | I165: =IF(FLOOR(1+(ROW()-7)/4,1)>COUNTIF(Заказ,$E$3),"",INDEX(Цена2,SMALL(IF(Заказ=$E$3,ROW(заказы[]),""),FLOOR(1+(ROW()-7)/4,1))-ROW(заказы[#Headers]),)) ->  | J165: =(FLOOR(1+(ROW()-7)/4,1)>COUNTIF(Заказ,$E$3))*((ROW()+2)<MATCH("яяя",$B:$B)) -> 1
J166: =(FLOOR(1+(ROW()-7)/4,1)>COUNTIF(Заказ,$E$3))*((ROW()+2)<MATCH("яяя",$B:$B)) -> 1
B167: Наименование товара | E167: =IF(FLOOR(1+(ROW()-7)/4,1)>COUNTIF(Заказ,$E$3),"",INDEX(Товар2,SMALL(IF(Заказ=$E$3,ROW(заказы[]),""),FLOOR(1+(ROW()-7)/4,1))-ROW(заказы[#Headers]),)) ->  | H167: № | I167: =IF(FLOOR(1+(ROW()-7)/4,1)>COUNTIF(Заказ,$E$3),"",INDEX(Номер2,SMALL(IF(Заказ=$E$3,ROW(заказы[]),""),FLOOR(1+(ROW()-7)/4,1))-ROW(заказы[#Headers]),)) ->  | J167: =(FLOOR(1+(ROW()-7)/4,1)>COUNTIF(Заказ,$E$3))*((ROW()+2)<MATCH("яяя",$B:$B)) -> 1
J168: =(FLOOR(1+(ROW()-7)/4,1)>COUNTIF(Заказ,$E$3))*((ROW()+2)<MATCH("яяя",$B:$B)) -> 1
B169: Заказываемое количество | E169: =IF(FLOOR(1+(ROW()-7)/4,1)>COUNTIF(Заказ,$E$3),"",INDEX(Количество,SMALL(IF(Заказ=$E$3,ROW(заказы[]),""),FLOOR(1+(ROW()-7)/4,1))-ROW(заказы[#Headers]),)) ->  | F169: ед. по цене | I169: =IF(FLOOR(1+(ROW()-7)/4,1)>COUNTIF(Заказ,$E$3),"",INDEX(Цена2,SMALL(IF(Заказ=$E$3,ROW(заказы[]),""),FLOOR(1+(ROW()-7)/4,1))-ROW(заказы[#Headers]),)) ->  | J169: =(FLOOR(1+(ROW()-7)/4,1)>COUNTIF(Заказ,$E$3))*((ROW()+2)<MATCH("яяя",$B:$B)) -> 1
J170: =(FLOOR(1+(ROW()-7)/4,1)>COUNTIF(Заказ,$E$3))*((ROW()+2)<MATCH("яяя",$B:$B)) -> 1
B171: Общая стоимость заказа | E171: =SUMPRODUCT(Сумма*(Заказ=$E$3)) -> 8020 | F171: Скидка(%) | I171: =SUMPRODUCT(Скидка2*(Заказ=$E$3))/COUNTIF(Заказ,$E$3) -> 0.15 | J171: =(FLOOR(1+(ROW()-7)/4,1)>COUNTIF(Заказ,$E$3))*((ROW()+2)<MATCH("яяя",$B:$B)) -> 0
J172: =(FLOOR(1+(ROW()-7)/4,1)>COUNTIF(Заказ,$E$3))*((ROW()+2)<MATCH("яяя",$B:$B)) -> 0
B173: К оплате | D173: =E171*(1-I171) -> 6817 | F173: Оформил | J173: =(FLOOR(1+(ROW()-7)/4,1)>COUNTIF(Заказ,$E$3))*((ROW()+2)<MATCH("яяя",$B:$B)) -> 0
J174: =(FLOOR(1+(ROW()-7)/4,1)>COUNTIF(Заказ,$E$3))*((ROW()+2)<MATCH("яяя",$B:$B)) -> 0
